Cogmind - Beta 16 @@@ ROGUE MODE // 2026.01.19 @ 08:51:49 // Winter2019/RPGLIKE Player: Gallgagger Result: Self-destructed Performance ------------- Evolutions (0) 0 Regions Visited (4) 800 Robots Destroyed (0) 0 Value Destroyed (0) 0 Prototype IDs (23) 460 Alien Tech Used (0) 0 Bonus (300) 300 TOTAL SCORE: 1560 Bonus ------- Aligned with FarCom 300 Cogmind --------- Core Integrity 7/600 Matter 280/300 Energy 100/100 System Corruption 1% Temperature Cool (0) Movement Core (50) Location -9/Mines Parts ------- > --- POWER (1) -------- (None) > --- PROPULSION (1) --- (None) > --- UTILITY (1) ------ (None) > --- WEAPON (1) ------- (None) > --- INVENTORY (0) ---- (None) Peak State ------------ > --- POWER ------------ (None) > --- PROPULSION ------- (None) > --- UTILITY ---------- (None) > --- WEAPON ----------- Field Lobotomy Kit > --- INVENTORY -------- (None) [Rating: 10] Favorites ----------- Power None Propulsion Flight Unit Flight Unit Flight Unit Utility None Weapon Field Lobotomy Kit Special Weapon Field Lobotomy Kit Build | -11 -10 -10 -10 -9 ------- Run | Yrd Mat Min Exi Min Slots Evolved . | . . . . . Power . | . . . . . Propulsion . | . . . . . Utility . | . . . . . Weapon . | . . . . . Parts Attached 2 | . . 1 1 . Power . | . . . . . Engine . | . . . . . Core . | . . . . . Reactor . | . . . . . Propulsion 1 | . . 1 . . Treads . | . . . . . Leg . | . . . . . Wheel . | . . . . . Hover . | . . . . . Flight 1 | . . 1 . . Utility . | . . . . . Device . | . . . . . Storage . | . . . . . Processor . | . . . . . Hackware . | . . . . . Protection . | . . . . . Artifact . | . . . . . Weapon 1 | . . . 1 . Energy Gun . | . . . . . Energy Cannon . | . . . . . Ballistic Gun . | . . . . . Ballistic Cannon . | . . . . . Launcher . | . . . . . Special Weapon 1 | . . . 1 . Impact Weapon . | . . . . . Slashing Weapon . | . . . . . Piercing Weapon . | . . . . . Special Melee Weapon . | . . . . . Unidentified Prototypes . | . . . . . Parts Lost 1 | . . 1 . . Power . | . . . . . Propulsion 1 | . . 1 . . Utility . | . . . . . Weapon . | . . . . . Highest Loss Streak 1 | . . 1 . . To Critical Strikes . | . . . . . Average Backups . | . . . . . Power . | . . . . . Propulsion . | . . . . . Utility . | . . . . . Weapon . | . . . . . Tool/Special . | . . . . . Unused Backups . | . . . . . Power . | . . . . . Propulsion . | . . . . . Utility . | . . . . . Weapon . | . . . . . Tool/Special . | . . . . . Average Slot Usage (%) 11 | . . 1 18 21 Special Weapon 11 | . . . 18 21 Peak Build Rating 10 | . . 1 10 10 Average Rating 4 | . . . 7 8 On Entrance 2 | . . . . 10 Avg Prop Armor Cover (%) . | . . . . . Naked Turns 305 | . 31 203 58 13 Heaviest Build 8 | . . . 8 8 Greatest Support 4 | 3 3 4 3 3 Greatest Overweight (x) 2 | . . . 2 2 Average Overweight (x) . | . . . . 1 Largest Inventory Capacity . | . . . . . Average Capacity . | . . . . . Most Carried . | . . . . . Average Carried . | . . . . . Final Capacity . | . . . . . Final Carried . | . . . . . Class Distribution -------------------- 100% | Mutant Dominant Class ---------------- Mutant | -10/Materials Mutant | -10/Mines Mutant | -10/Exiles Mutant | -9/Mines Resources | -11 -10 -10 -10 -9 ----------- Run | Yrd Mat Min Exi Min Matter Collected 123 | 37 . 86 . . Remotely . | . . . . . Salvage Created . | . . . . . Parts . | . . . . . Haulers Intercepted . | . . . . . Recyclers Shooed . | . . . . . Parts Field Recycled . | . . . . . Retrieved Matter . | . . . . . Parts Self-Destructed . | . . . . . Prevented . | . . . . . Parts Restored . | . . . . . Kills | -11 -10 -10 -10 -9 ------- Run | Yrd Mat Min Exi Min Combat Hostiles Destroyed . | . . . . . Classes Destroyed . | . . . . . Best Kill Streak . | . . . . . Combat Bots Only . | . . . . . Max Kills in Single Turn . | . . . . . Gunslinging . | . . . . . Exploded . | . . . . . Melee . | . . . . . Uniques/NPCs Destroyed . | . . . . . Combat | -11 -10 -10 -10 -9 -------- Run | Yrd Mat Min Exi Min Hostile Shots Fired 71 | . 9 53 5 4 Missed 25 | . 4 19 . 2 Hits 46 | . 5 34 5 2 Melee 1 | . . . 1 . Projectile 45 | . 5 34 4 2 Damage Taken 619 | . 62 456 72 29 Core 593 | . 62 445 60 26 Absorbed by Shields . | . . . . . Redirected to Core 88 | . . 35 42 11 Core Remaining (%) 100 | 100 . . . . Volleys Fired 5 | . . . 1 4 Largest 1 | . . . 1 1 Hottest . | . . . . . Shots Fired 5 | . . . 1 4 Gun . | . . . . . Cannon . | . . . . . Launcher . | . . . . . Special 5 | . . . 1 4 Kinetic . | . . . . . Thermal . | . . . . . Explosive . | . . . . . Electromagnetic . | . . . . . Robot Hit Streak 5 | . . . 1 5 Robot Miss Streak . | . . . . . Penetration Max . | . . . . . Secondary Targets . | . . . . . Shots Hit Robots 5 | . . . 1 4 Core Hits 2 | . . 2 . . Critical Kills . | . . . . . Critical Parts Destroyed . | . . . . . Critical Strikes . | . . . . . Melee Attacks . | . . . . . Impact . | . . . . . Slashing . | . . . . . Piercing . | . . . . . Sneak Attacks . | . . . . . Combat Hostiles . | . . . . . Follow-up Attacks . | . . . . . Damage Inflicted 110 | . . 110 . . Guns . | . . . . . Cannons . | . . . . . Explosions . | . . . . . Melee . | . . . . . Ramming 110 | . . 110 . . Kinetic . | . . . . . Thermal . | . . . . . Explosive . | . . . . . Electromagnetic . | . . . . . Impact . | . . . . . Slashing . | . . . . . Piercing . | . . . . . Highest Corruption 1 | . . 1 1 1 Average Corruption 1 | . . 1 1 1 Corruption Purged . | . . . . . Corruption Blocked . | . . . . . Effects 2 | . . . . 2 Matter Fused 1 | . . . . 1 Energy Discharges 1 | . . . . 1 Overload Shots . | . . . . . Overflow Damage . | . . . . . Projectiles . | . . . . . Explosions . | . . . . . Melee . | . . . . . Knockbacks . | . . . . . Impact . | . . . . . Kinetic . | . . . . . Secondary . | . . . . . Self-Inflicted Damage 47 | . . 47 . . Shots . | . . . . . Rammed 29 | . . 29 . . Targets Rammed 29 | . . 29 . . Kicked . | . . . . . Crushed . | . . . . . Highest Temperature . | . . . . . Average Temperature . | . . . . . Received Heat Transfer 226 | . 36 132 40 18 Siege Activations . | . . . . . Martial Activations . | . . . . . Shielding Activations . | . . . . . Robots Disrupted . | . . . . . Combat Hostiles . | . . . . . Robots Corrupted . | . . . . . Combat Hostiles . | . . . . . Parts Fried . | . . . . . Impact Corruptions . | . . . . . Robots Melted . | . . . . . Combat Hostiles . | . . . . . Parts Melted . | . . . . . Heat Transferred . | . . . . . Parts Sabotaged . | . . . . . Parts Stolen . | . . . . . Parts Stripped . | . . . . . Power Chain Reactions . | . . . . . Alert | -11 -10 -10 -10 -9 ------- Run | Yrd Mat Min Exi Min Maximum Alert Level . | . . . . . Low Security (%) 100 | 100 100 100 . 100 Level 1 . | . . . . . Level 2 . | . . . . . Level 3 . | . . . . . Level 4 . | . . . . . Level 5 . | . . . . . High Security . | . . . . . Max Security . | . . . . . Peak Influence 30 | . . 30 . . Initial . | . . . . . Average 4 | . . 8 . . Influence Increases 75 | . . 75 . . Lose Combat Pursuer 75 | . . 75 . . Influence Decreases 75 | . . 75 . . Time Decay 65 | . . 65 . . Lost Part 10 | . . 10 . . Squads Dispatched . | . . . . . Investigation . | . . . . . Extermination . | . . . . . Reinforcement . | . . . . . Assault . | . . . . . Garrison . | . . . . . Intercept . | . . . . . Searches Triggered . | . . . . . Construction Impeded . | . . . . . Haulers Reinforced . | . . . . . Active Scanning Responses . | . . . . . Cargo Convoy Interrupts . | . . . . . Stealth | -11 -10 -10 -10 -9 --------- Run | Yrd Mat Min Exi Min Distress Signals 1 | . 1 . . . Communications Jammed . | . . . . . Distress Signals . | . . . . . Times Spotted 20 | . 3 10 5 2 Peak Tracking Total 9 | . 3 4 9 . Tactical Retreats 3 | . . 3 . . Traps | -11 -10 -10 -10 -9 ------- Run | Yrd Mat Min Exi Min Traps Triggered . | . . . . . Indirectly . | . . . . . Trap Hack Attempts . | . . . . . Triggered . | . . . . . Disarmed . | . . . . . Reprogrammed . | . . . . . Reused . | . . . . . Traps Extracted . | . . . . . Installed . | . . . . . Triggered . | . . . . . Machines | -11 -10 -10 -10 -9 ---------- Run | Yrd Mat Min Exi Min Machines Disabled . | . . . . . Max in Single Turn . | . . . . . Machines Repaired . | . . . . . Machines Dismantled . | . . . . . Machines Sabotaged . | . . . . . Overloaded Fab Kills . | . . . . . Hacking | -11 -10 -10 -10 -9 --------- Run | Yrd Mat Min Exi Min Machines Accessed 1 | . . . 1 . Terminals . | . . . . . Fabricators . | . . . . . Repair Stations . | . . . . . Recycling Units . | . . . . . Scanalyzers . | . . . . . Garrison Access . | . . . . . Total Hacks 1 | . . . 1 . Successful 1 | . . . 1 . Failed . | . . . . . Catastrophic . | . . . . . Database Lockouts . | . . . . . Manual 1 | . . . 1 . Terminals . | . . . . . Fabricators . | . . . . . Repair Stations . | . . . . . Recycling Units . | . . . . . Scanalyzers . | . . . . . Garrison Access . | . . . . . Terminal Hacks 1 | . . . 1 . Proto ID Catalog 1 | . . . 1 . Fabricator Hacks . | . . . . . Repair Station Hacks . | . . . . . Recycling Unit Hacks . | . . . . . Scanalyzer . | . . . . . Garrison Access Hacks . | . . . . . Unauthorized Hacks . | . . . . . Terminals . | . . . . . Fabricators . | . . . . . Repair Stations . | . . . . . Recycling Units . | . . . . . Scanalyzers . | . . . . . Garrison Access . | . . . . . Data Cores Recovered . | . . . . . Used . | . . . . . Hacking Detections . | . . . . . Full Trace Events . | . . . . . Feedback Events . | . . . . . Feedback Blocked . | . . . . . Robot Schematics Acquired . | . . . . . Robots Built . | . . . . . Authchips . | . . . . . Time . | . . . . . Total Robot Build Rating . | . . . . . Part Schematics Acquired . | . . . . . Parts Built . | . . . . . Authchips . | . . . . . Time . | . . . . . Total Part Build Rating . | . . . . . Part Studies Acquired . | . . . . . Parts Repaired . | . . . . . Time . | . . . . . Parts Recycled . | . . . . . Recycled Matter . | . . . . . Retrieved Matter . | . . . . . Retrieved Components . | . . . . . Parts Scanalyzed . | . . . . . Part Schematics Acquired . | . . . . . Parts Damaged . | . . . . . Bothacking | -11 -10 -10 -10 -9 ------------ Run | Yrd Mat Min Exi Min Used RIF Installer . | . . . . . Robots Hacked . | . . . . . Non-combat . | . . . . . Combat . | . . . . . Robot Hacks Applied . | . . . . . Relay Couplers Released . | . . . . . Fabnet Peak Effective % . | . . . . . Robots Rewired . | . . . . . Allies Hacked . | . . . . . Hacks Repelled . | . . . . . Allies | -11 -10 -10 -10 -9 -------- Run | Yrd Mat Min Exi Min Total Allies 5 | . . . 1 4 Largest Group 4 | . . . 1 4 Highest-Rated Group 50 | . . . 10 50 Highest-Rated Ally 15 | . . . 10 15 Total Orders . | . . . . . Ally Attacks 5 | . . . . 5 Total Damage 112 | . . . . 112 Kills . | . . . . . Allies Corrupted . | . . . . . Allies Melted . | . . . . . Field Lobotomies 5 | . . . 1 4 Intel | -11 -10 -10 -10 -9 ------- Run | Yrd Mat Min Exi Min Active Infowar (turns) . | . . . . . Robot Analysis Total . | . . . . . Derelict Logs Recovered 2 | . . 2 . . Drone Launches . | . . . . . Drone Recoveries . | . . . . . Exploration | -11 -10 -10 -10 -9 ------------- Run | Yrd Mat Min Exi Min Turns Passed 601 | 11 31 216 217 126 Spaces Moved 767 | 21 62 377 219 88 Core 736 | 21 62 346 219 88 Treads . | . . . . . Legs . | . . . . . Wheels . | . . . . . Hover . | . . . . . Flight 31 | . . 31 . . Fastest Speed 40 | 50 50 40 50 50 Average Speed 72 | 50 50 49 97 128 Slowest Speed 150 | 50 50 50 150 150 Overloaded Moves . | . . . . . Propulsion Burnouts . | . . . . . Robots Hopped . | . . . . . Potential Cave-ins . | . . . . . Cave-ins Triggered . | . . . . . Exploration Rate (%) 44 | 3 22 88 62 46 Regions Visited 4 Branch Regions 3 Pre-discovered Areas . | . . . . . Known Exits Taken . | . . . . . Unknown Exits Taken 4 | 1 1 1 1 . Scrap Searched 1 | . . 1 . . Spaces Dug . | . . . . . Terrain Destroyed . | . . . . . Melee . | . . . . . Projectile . | . . . . . AOE . | . . . . . Terrain Rammed . | . . . . . Walls Destroyed . | . . . . . Machines Disabled . | . . . . . Actions | -11 -10 -10 -10 -9 --------- Run | Yrd Mat Min Exi Min Total 799 | 20 61 406 220 92 Wait . | . . . . . Move 763 | 20 61 376 218 88 Hop . | . . . . . Pick Up . | . . . . . Fast Attach 2 | . . 1 1 . Attach . | . . . . . Detach . | . . . . . Swap . | . . . . . Drop . | . . . . . Fire 5 | . . . 1 4 Melee . | . . . . . Ram 29 | . . 29 . . Kick . | . . . . . Crush . | . . . . . Escape Stasis . | . . . . . Rewire . | . . . . . Trap . | . . . . . Miscellaneous . | . . . . . Route ------- -11/Scrapyard -10/Materials -10/Mines (discovered 3 exits: [*Mat x2] / *Exi) -10/Exiles -9/Mines (discovered 1 exit: [*Mat]) History --------- Turn | Location | Event 3 | -11/Scrapyard | Discovered new exit (range 15) 12 | -11/Scrapyard | Entered Materials 35 | -10/Materials | Discovered new exit (range 16) 43 | -10/Materials | Entered Mines 83 | -10/Mines | Discovered new exit (range 14) 99 | -10/Mines | Learned Materials trap positions 113 | -10/Mines | Discovered new exit (range 9) 134 | -10/Mines | Core integrity fell below 50% 140 | -10/Mines | Received a Rocket Launcher from a helpful Derelict 240 | -10/Mines | Core integrity fell below 20% 256 | -10/Mines | Deemed a non-threat by the Exiles lab entrance 257 | -10/Mines | Discovered new exit (range 5) 259 | -10/Mines | Entered Exiles 272 | -10/Exiles | Met 8R-AWN 281 | -10/Exiles | Met EX-HEX 294 | -10/Exiles | Met EX-BIN 300 | -10/Exiles | Aligned with FarCom system 300 | -10/Exiles | Given EX-Vault access code 306 | -10/Exiles | Build established: Mutant 315 | -10/Exiles | Opened EX-Vault 317 | -10/Exiles | Found Field Lobotomy Kit 351 | -10/Exiles | Warned to stay clear of 0b10 Research branches 405 | -10/Exiles | Met EX-DEC 429 | -10/Exiles | Assimilated QQ-2FI(z) with FLK Orb 430 | -10/Exiles | Attacked by the Exiles 464 | -10/Exiles | Discovered new exit (range 10) 476 | -10/Exiles | Left Exiles lab with Field Lobotomy Kit 476 | -10/Exiles | Entered Mines 482 | -9/Mines | Discovered new exit (range 15) 557 | -9/Mines | Assimilated T-07 Excavator with FLK Orb 564 | -9/Mines | Assembled infested the area 583 | -9/Mines | Assimilated Y-45 Defender with FLK Orb 586 | -9/Mines | Assimilated Y-45 Defender with FLK Orb 589 | -9/Mines | Assimilated T-07 Excavator with FLK Orb 602 | -9/Mines | Self-destructed Last Messages --------------- time, folks! 00432_ QQ-2FI(z) knocked back. 00433_ QQ-2FI(z) destroyed. 00464_ EXIT=FOUND LOCATION=UNKNOWN GOAL=ESCAPE 00482_ EXIT=FOUND 00485_ K-01 Serf collects debris. 00500_ System corrupted: Energy discharge (-40). 00502_ K-01 Serf collects debris. 00518_ System corrupted: Matter fused (-10). 00520_ K-01 Serf collects debris. 00557_ T-07 Excavator assimilated. 00564_ ALERT: Infestation in the mines, dispatching Demolisher response squad. 00576_ K-01 Serf collects debris. 00583_ Y-45 Defender assimilated. 00589_ Field Lobotomy Kit expended. 00589_ T-07 Excavator assimilated. 00593_ K-01 Serf collects debris. Map ----- +----------------------------------------------------+ | ??????## ##?????# #????# ##????????????????? | | ???????####?????## #??## #????????????????? | | #####???????????# #?## #?????????????????? | | # ###??????##?# ### #??????????????????? | | ##????##!!## #???????????????????? | | #????#"![ # #???????????????????? | | #????# + ##?????#????????????? | | #?????# + ##### #????????????? | | ##?????#"!! # #????????????? | | #??????##!!## #?????????????? | | #???????#### ####?????????????? | | # ##??????????## ##????????????????? | | #####????????????## ##?????? ?????????? | | ??????????????????##### ##?????? ????????? | | ??????????????????????## t##????? ????????? | | ??????????????????????## #???? #????????? | | ?????????????????????## #???# ??????????? | | ?????????????????????# ##?# #???????????? | | ?????????????????????# ## #????????????? | | ?????????????????????## ###### ??????? | | ??????????????????????## ?????? | | ???????????????????????# ?????? | | ???????????????????????# ### ?????? | | ???????????????????????# #????????????? | | ???????????????????????## #????????????? | | ????????????????????????#@ ##????????????? | | ????????????????????????# ###?????????????? | | ???????????????????????? ##???????????????? | | ???????????????????????? #????????????????? | | ??????????????????????? ???????????????? | | ??????????????????????? ??????????????? | | ?????????????????????? ######?????????????? | | ??????????????????????# #??????????????????? | | ??????????????????????## ##??????????????????? | | ???????????????????????###????????????????????? | | ??????????????????????????????????????????????? | | ??????????????????????????????????????????????? | | ??????????????????????????????????????????????? | | ??????????????????????????????????????????????? | | | | | | | | | | | | | | | | | | | | | | | +----------------------------------------------------+ Best States ------------- Heat Dissipation 25 Energy Generation 5 Energy Capacity 100 Matter Stores 300 Matter Capacity 300 Sight Range 16 Terrain Scan Density 10 Evasion (%) 62 Item Schematics ----------------- None Robot Schematics ------------------ None Fabricated ------------ Nothing Repaired ---------- Nothing Studied --------- None Alien Tech Used ----------------- None Achievements -------------- None Challenges ------------ None RPGLIKE | -11 -10 -10 -10 -9 --------- Run | Yrd Mat Min Exi Min Levels Raised . | . . . . . XP Earned 4350 | 3000 . 500 350 500 Upgrades . | . . . . . Protomatter Created . | . . . . . Protomatter Decayed . | . . . . . Game ------ Seed AlertChainRipteeth Manual? 0 Play Time 00:03:43 Cumulative 556.3 hours Start 2026.01.19 @ 08:47:46 End 2026.01.19 @ 08:51:49 Sessions 1 Manual Loads 0 Difficulty Rogue Special Mode Winter2019/RPGLIKE Game No. 208 Rogue 54 Adventurer 154 Explorer 0 Win Type - Total 20 Types 4/4/3/3/2/1/0/1/1/1 Lore% 95 Gallery% 88 Achievement% 61 Wizard Run 0 Options --------- Layout 0 ASCII 0 Keyboard 0 Movement Numpad Keybinds 0 Fullscreen 2 Font 18/SmallcapsGlow Map View 76x50 Zoom Use 0% Tactical HUD 1 Map Filters NONE Filters NONE Steam 1 RUN: ee2379c8-bea8-43ff-a31c-310b7d18aa0f